{"text_format":"1","workbook":"xlsx","n_sheets":4,"sheets":["Vejledning","Lærere Ny Løn","Lærere OK ansatte anc.løn","satser"],"not_rendered":{"charts":0,"images":0,"macros":1,"external_links":0,"defined_names":0,"comments":3,"pivot_tables":0},"unopened":[],"bounds":{"document_bytes":16777216,"sheet_cells":100000,"rows_first":2000,"rows_last":500,"rows_between":2000,"halvings":0,"cell_chars":16384,"cell_head_chars":4096},"cells_cut":0,"cells_raw":0,"read":"whole","date_system":"1900"}

{"sheet":"Vejledning","index":0,"n_rows":33,"n_cols":1,"rows_kept":33,"cut":false,"hidden":false,"merged":[]}
["Vejledning til regneark, lønberegning."]
[]
["Regnearket anvendes til kontrol af lønsedler . Man skal bruge sin lønseddel og opgaveoversigten"]
["Regnearket kan anvendes af lærere på CSV Odense-Vestfyn-Brangstrup"]
["Medlemmer ansat andre steder kan få hjælp til at kontrollere deres lønsedler i Odense Lærerforening"]
[]
[]
["Find det relevante ark i regnearket"]
["(Lærere Ny Løn, Lærere OK ansatte anc. Løn)"]
[]
[]
[]
["Der kan kun indtastes i de gule felter!"]
[]
["Beskæftigelsesgrad indtastes med ugentligt timetal (fremgår af lønsedlen)"]
["Grundløn fremkommer automatisk, tillæg for anciennitet skal indtastes med 1 ved relevant anciennitetstillæg (fremgår af lønsedlen)"]
["Forhåndsaftalt funktions- og kvalifikationsløn indtastes med 1 ud for funktionen (kvalifikationen)"]
["Ved delt funktion anvendes decimaltal."]
["CSV-tillæg fremgår automatisk"]
[]
["Lønaftaler, der ikke er nævnt i regnearket indtastes med det månedlige beløb, der fremgår af lønsedlen."]
["Der kan evt. indtastes navn på disse tillæg."]
[]
["Undervisningstillæg indtastes med det årlige undervisningstimetal"]
["Timetallet fremgår af opgaveoversigten"]
[]
["Månedslønnen fremkommer automatisk og er sammenlignelig med lønsedlen"]
[]
["Bemærk: Der kan fremkomme øreafvigelser p.g.a. afrunding."]
[]
["Arbejdstidsbestemte tillæg udbetales konkret og fremgår ikke af lønberegneren"]
[]
["Kommentarer eller rettelser er velkomne, kontakt Mads Alnor, Odense Lærerforening."]

{"sheet":"Lærere Ny Løn","index":1,"n_rows":39,"n_cols":3,"rows_kept":39,"cut":false,"hidden":false,"merged":[[1,0,2,2],[0,0,0,1]]}
["Lønberegning niveau",null,{"$f":"satser!F1","v":"01.10.2024"}]
["Lærere Ny løn"]
[]
[]
["Navn:"]
["Måned"]
[]
["Beskæftigelsesgrad (indsæt ugentligt timetal)",37]
[null,null,"Månedsløn"]
["Grundløn trin 31",31,{"$f":"satser!B11*B8/37","v":32149.25}]
["Grundlønstillæg - lærer",null,{"$f":"IF(B14=1,\"\",satser!I3*B8/37)","v":399.53975000000008}]
["Lærere på grundløn",null,{"$f":"IF((B12+B13+B14)>1,\"Fejl: kun et tillæg\",IF(B12=1,satser!D12*B8/37,\"\"))","v":""}]
["Anciennitetstillæg (trin 31-35)",null,{"$f":"IF((B12+B13+B14)>1,\"Fejl: kun et tillæg\",IF(B13=1,satser!D15*B8/37,\"\"))","v":""}]
["Anciennitetstillæg (trin 31-40)",null,{"$f":"IF((B12+B13+B14)>1,\"Fejl: kun et tillæg\",IF(B14=1,satser!D20*B8/37,\"\"))","v":""}]
["Anciennitetstillæg - lærer",null,{"$f":"IF(AND(B15=1,B14=1),satser!I4*B8/37,\"\")","v":""}]
["Specialundervisning for voksne",null,{"$f":"satser!I8*B8/37","v":3768.991641666667}]
[]
["Funktions- og kvalifikationsløn: Tast 1 i det gule felt, hvis omfattet:"]
["CSV-tillæg",null,{"$f":"satser!H12","v":1065.44}]
["Vejlederfunktion",null,{"$f":"(IF(B20>1,\"Fejl:kun et tillæg\",IF(B20>0,B20*satser!H13*B8/37,\"\")))","v":""}]
["FVU-undervisning",null,{"$f":"(IF(B21>1,\"Fejl:kun et tillæg\",IF(B21>0,B21*satser!H14*B8/37,\"\")))","v":""}]
["TR uden forhandlingskompetence",null,{"$f":"(IF(B22>1,\"Fejl:kun et tillæg\",IF(B22>0,B22*satser!H15,\"\")))","v":""}]
["TR uden forhandlingskompetence > 35",null,{"$f":"(IF(B23>1,\"Fejl:kun et tillæg\",IF(B23>0,B23*satser!H16,\"\")))","v":""}]
["AMR funktion",null,{"$f":"(IF(B24>1,\"Fejl:kun et tillæg\",IF(B24>0,B24*satser!H17,\"\")))","v":""}]
[null,null,{"$f":"(IF(B24+B25>1,\"Fejl:kun et tillæg\",IF(B25>0,B25*satser!H16,\"\")))","v":""}]
["Pæd. Diplomudd./Masterudd.",null,{"$f":"(IF(B26>1,\"Fejl:kun et tillæg\",IF(B26>0,B26*satser!H19*B8/37,\"\")))","v":""}]
[]
["Undervisnings- og specialundervisningstillæg m.m. "]
["Undervisningstimetal"]
["uv-tillæg > 680",{"$f":"(IF((B29/B8*37)>680,((B29/B8*37)-680)*B8/37,0))/12","v":0},{"$f":"IF(B30>0,B30*satser!H23,\"\")","v":""}]
[]
["Andre tillæg. Indtast beløb fra lønseddel"]
[]
[]
[]
[]
[]
[]
["Fast løn i alt",null,{"$f":"SUM(C10:C38)","v":37383.221391666666}]

{"sheet":"Lærere OK ansatte anc.løn","index":2,"n_rows":36,"n_cols":3,"rows_kept":36,"cut":false,"hidden":false,"merged":[[1,0,2,2],[0,0,0,1]]}
["Lønberegning niveau ",null,{"$f":"satser!F1","v":"01.10.2024"}]
["Lærere OK ansatte anc. Løn"]
[]
[]
["Navn: "]
["Måned"]
[]
["Beskæftigelsesgrad (indsæt ugentligt timetal)",37]
[]
[null,null,"Månedsløn"]
["Grundløn trin 43",43,{"$f":"satser!B23*B8/37","v":39401.25}]
["Stillingstillæg - lærer",null,{"$f":"satser!I5*B8/37","v":1731.3389166666668}]
["Specialundervisning for voksne",null,{"$f":"satser!I8*B8/37","v":3768.991641666667}]
[]
["Funktions- og kvalifikationsløn: Tast 1 i det gule felt, hvis omfattet:"]
["CSV-tillæg",null,{"$f":"satser!H12","v":1065.44}]
["Vejlederfunktion",null,{"$f":"(IF(B17>1,\"Fejl:kun et tillæg\",IF(B17>0,B17*satser!H13*B8/37,\"\")))","v":""}]
["FVU-undervisning",null,{"$f":"(IF(B18>1,\"Fejl:kun et tillæg\",IF(B18>0,B18*satser!H14*B8/37,\"\")))","v":""}]
["TR uden forhandlingskompetence",null,{"$f":"(IF(B19>1,\"Fejl:kun et tillæg\",IF(B19>0,B19*satser!H15,\"\")))","v":""}]
["TR uden forhandlingskompetence > 35",null,{"$f":"(IF(B20>1,\"Fejl:kun et tillæg\",IF(B20>0,B20*satser!H16,\"\")))","v":""}]
["AMR funktion",null,{"$f":"(IF(B21>1,\"Fejl:kun et tillæg\",IF(B21>0,B21*satser!H17,\"\")))","v":""}]
[null,null,{"$f":"(IF(B21+B22>1,\"Fejl:kun et tillæg\",IF(B22>0,B22*satser!H16,\"\")))","v":""}]
["Pæd. Diplomudd./Masterudd.",null,{"$f":"(IF(B23>1,\"Fejl:kun et tillæg\",IF(B23>0,B23*satser!H19*B8/37,\"\")))","v":""}]
[]
["Undervisnings- og specialundervisningstillæg m.m. "]
["Undervisningstimetal"]
["uv-tillæg > 680",{"$f":"(IF((B26/B8*37)>680,((B26/B8*37)-680)*B8/37,0))/12","v":0},{"$f":"IF(B27>0,B27*satser!H23,\"\")","v":""}]
[]
["Andre tillæg. Indtast beløb fra lønseddel"]
[]
[]
[]
[]
[]
[]
["Fast løn i alt",null,{"$f":"SUM(C10:C35)","v":45967.020558333337}]

{"sheet":"satser","index":3,"n_rows":27,"n_cols":10,"rows_kept":27,"cut":false,"hidden":false,"merged":[[0,0,0,4],[18,10,18,11],[1,6,1,7],[2,2,2,3],[6,2,6,3]]}
["Satser pr. ",null,null,null,null,"01.10.2024"]
[null,null,null,null,null,null,"Grundbeløb",null,"Månedligt beløb pr.",{"$f":"F1","v":"01.10.2024"}]
[null,null,null,null,null,"Grundlønstillæg - lærer",3000,null,{"$f":"G3*C27/12","v":399.53975000000008}]
[null,null,null,null,null,"Anciennitetstillæg - lærer",10000,null,{"$f":"G4*C27/12","v":1331.7991666666669}]
[null,null,null,null,null,"Stillingstillæg - lærer",null,13000,{"$f":"H5*C27/12","v":1731.3389166666668}]
[]
["Løntrin ","Pr. måned","Anciennitetstillæg"]
[28,30657,null,null,null,"Specialundervisning for voksne",28300,null,{"$f":"G8*C27/12","v":3768.991641666667}]
[29,31144.416666666668]
[30,31641.416666666668,null,null,null,null,null,null,null,{"$f":"F1","v":"01.10.2024"}]
[31,32149.25,"28 . 31",{"$f":"B11-B8","v":1492.25},null,"Funktions- og kvalifikationsløn: ","Grundbeløb","Månedligt beløb pr."]
[32,32667.333333333332,"31 - 32",{"$f":"B12-B11","v":518.08333333333212},null,"CSV-tillæg",8000,{"$f":"ROUND(G12*$C$27/12,2)","v":1065.44}]
[33,33195.916666666664,"28 - 33",{"$f":"B13-B8","v":2538.9166666666642},null,"Vejlederfunktion",10000,{"$f":"ROUND(G13*$C$27/12,2)","v":1331.8}]
[34,33735.916666666664,null,null,null,"FVU-undervisning",6000,799.08]
[35,34286.333333333336,"31 - 35",{"$f":"B15-B11","v":2137.0833333333358},null,"TR uden forhandlingskompetence",5350,712.51]
[36,34848.5,null,null,null,"TR uden forhandlingskompetence > 35",6000,799.08]
[37,35421.75,"36 - 37",{"$f":"B17-B16","v":573.25},null,"AMR funktion",5350,712.51]
[38,36033.166666666664,"28-37",{"$f":"B17-B8","v":4764.75}]
[39,36642.25,null,null,null,"Pæd. Diplomudd./Masterudd.",7500,{"$f":"ROUND(G19*$C$27/12,2)","v":998.85}]
[40,37263.833333333336,"31 - 40",{"$f":"B20-B11","v":5114.5833333333358}]
[41,37897.916666666664]
[42,38544.666666666664,null,null,null,"Undervisnings- og specialundervisningstillæg m.m. "]
[43,39401.25,null,null,null,"uv-tillæg > 680",100,{"$f":"ROUND(G23*$C$27,2)","v":159.82}]
[44,40281.583333333336,"43 - 44",{"$f":"B24-B23","v":880.33333333333576}]
[]
[]
["Reguleringsfaktor:",null,1.5981590000000001]